[Event "Titled Tuesday Blitz March 28 Late 2023"]
[White "Kubatko, Ivan"]
[Black "ritanovikova"]
[WhiteFideId "24111473"]
[WhiteElo "2285"]
[BlackElo "2212"]
[Result "1-0"]
[Round "02"]
[TimeControl "180+2"]
[Date "2023.03.28"]
[WhiteClock "0:00:26"]
[BlackClock "0:00:33"]

1. e4 {[%clk 0:03:00]}  d5 {[%clk 0:02:59]} 2. exd5 {[%clk 0:03:00]}  Qxd5 {[%clk 0:03:00]} 3. Nc3 {[%clk 0:03:00]}  Qd6 {[%clk 0:03:00]} 4. d4 {[%clk 0:03:00]}  Nf6 {[%clk 0:03:00]} 5. Be3 {[%clk 0:02:58]}  a6 {[%clk 0:02:59]} 6. Nge2 {[%clk 0:02:56]}  Bg4 {[%clk 0:02:56]} 7. f3 {[%clk 0:02:56]}  Bh5 {[%clk 0:02:56]} 8. Qd2 {[%clk 0:02:55]}  e6 {[%clk 0:02:55]} 9. g4 {[%clk 0:02:45]}  Bg6 {[%clk 0:02:54]} 10. h4 {[%clk 0:02:29]}  h6 {[%clk 0:02:52]} 11. Nf4 {[%clk 0:02:28]}  Bh7 {[%clk 0:02:51]} 12. g5 {[%clk 0:02:28]}  Nd5 {[%clk 0:02:22]} 13. g6 {[%clk 0:02:21]}  Bg8 {[%clk 0:02:02]} 14. Nfxd5 {[%clk 0:01:44]}  exd5 {[%clk 0:02:02]} 15. O-O-O {[%clk 0:01:42]}  Nc6 {[%clk 0:01:53]} 16. Bf4 {[%clk 0:01:40]}  Qd7 {[%clk 0:01:50]} 17. gxf7+ {[%clk 0:01:24]}  Bxf7 {[%clk 0:01:48]} 18. Bh3 {[%clk 0:01:24]}  Qd8 {[%clk 0:01:21]} 19. Rde1+ {[%clk 0:01:21]}  Be7 {[%clk 0:01:20]} 20. Rhg1 {[%clk 0:01:11]}  Kf8 {[%clk 0:01:17]} 21. Kb1 {[%clk 0:00:50]}  Bxh4 {[%clk 0:01:17]} 22. Re2 {[%clk 0:00:43]}  Bf6 {[%clk 0:01:15]} 23. Be5 {[%clk 0:00:39]}  Bh5 {[%clk 0:00:52]} 24. Reg2 {[%clk 0:00:38]}  Bxf3 {[%clk 0:00:48]} 25. Rxg7 {[%clk 0:00:36]}  Nxe5 {[%clk 0:00:40]} 26. dxe5 {[%clk 0:00:29]}  Bxg7 {[%clk 0:00:40]} 27. Qf4+ {[%clk 0:00:28]}  Kg8 {[%clk 0:00:37]} 28. Be6+ {[%clk 0:00:26]}  Kh7 {[%clk 0:00:33]} 29. Qf5# {[%clk 0:00:26]} 1-0


[Site "https://www.chess.com"]

[Event "Titled Tuesday Blitz March 28 Late 2023"]
[White "ArchibaldCerveza29"]
[Black "Napoli, Nicolo"]
[BlackFideId "813702"]
[WhiteElo "2464"]
[BlackElo "2308"]
[Result "0-1"]
[Round "02"]
[TimeControl "180+2"]
[Date "2023.03.28"]
[WhiteClock "0:00:07"]
[BlackClock "0:00:37"]

1. e4 {[%clk 0:03:00]}  Nc6 {[%clk 0:02:58]} 2. Nf3 {[%clk 0:02:59]}  e5 {[%clk 0:02:57]} 3. d4 {[%clk 0:02:58]}  exd4 {[%clk 0:02:56]} 4. Bc4 {[%clk 0:02:56]}  Nf6 {[%clk 0:02:55]} 5. O-O {[%clk 0:02:56]}  d6 {[%clk 0:02:51]} 6. Re1 {[%clk 0:02:54]}  Ne5 {[%clk 0:02:45]} 7. Bb3 {[%clk 0:02:45]}  Bg4 {[%clk 0:02:40]} 8. Nbd2 {[%clk 0:02:23]}  Be7 {[%clk 0:02:37]} 9. h3 {[%clk 0:02:12]}  Bh5 {[%clk 0:02:36]} 10. g4 {[%clk 0:01:57]}  Bg6 {[%clk 0:02:12]} 11. Nxd4 {[%clk 0:01:54]}  h5 {[%clk 0:02:10]} 12. g5 {[%clk 0:01:47]}  Nh7 {[%clk 0:02:08]} 13. f4 {[%clk 0:01:47]}  Bxg5 {[%clk 0:01:57]} 14. fxg5 {[%clk 0:01:34]}  Qxg5+ {[%clk 0:01:53]} 15. Kh1 {[%clk 0:01:29]}  Qg3 {[%clk 0:01:48]} 16. Nf1 {[%clk 0:01:17]}  Qxh3+ {[%clk 0:01:47]} 17. Kg1 {[%clk 0:01:07]}  O-O-O {[%clk 0:01:24]} 18. Re3 {[%clk 0:01:07]}  Qg4+ {[%clk 0:01:16]} 19. Qxg4+ {[%clk 0:01:00]}  hxg4 {[%clk 0:01:17]} 20. c3 {[%clk 0:00:47]}  Ng5 {[%clk 0:01:16]} 21. Rg3 {[%clk 0:00:38]}  Nxe4 {[%clk 0:01:14]} 22. Re3 {[%clk 0:00:23]}  Rh7 {[%clk 0:01:00]} 23. Rxe4 {[%clk 0:00:17]}  Bxe4 {[%clk 0:00:59]} 24. Ng3 {[%clk 0:00:18]}  Bf3 {[%clk 0:00:56]} 25. Bg5 {[%clk 0:00:17]}  f6 {[%clk 0:00:56]} 26. Be6+ {[%clk 0:00:15]}  Kb8 {[%clk 0:00:55]} 27. Bf4 {[%clk 0:00:16]}  Rdh8 {[%clk 0:00:52]} 28. Rf1 {[%clk 0:00:14]}  g5 {[%clk 0:00:52]} 29. Bxe5 {[%clk 0:00:13]}  fxe5 {[%clk 0:00:49]} 30. Nxf3 {[%clk 0:00:14]}  gxf3 {[%clk 0:00:48]} 31. Rxf3 {[%clk 0:00:14]}  Rh2 {[%clk 0:00:44]} 32. Rf2 {[%clk 0:00:14]}  Rxf2 {[%clk 0:00:42]} 33. Kxf2 {[%clk 0:00:15]}  Rh2+ {[%clk 0:00:42]} 34. Ke3 {[%clk 0:00:15]}  Rxb2 {[%clk 0:00:43]} 35. Ne4 {[%clk 0:00:15]}  g4 {[%clk 0:00:41]} 36. Nf6 {[%clk 0:00:11]}  g3 {[%clk 0:00:40]} 37. Nd7+ {[%clk 0:00:07]}  Ka8 {[%clk 0:00:40]} 38. Bd5 {[%clk 0:00:02]}  g2 {[%clk 0:00:39]} 39. Bxg2 {[%clk 0:00:02]}  Rxg2 {[%clk 0:00:40]} 40. c4 {[%clk 0:00:03]}  Rxa2 {[%clk 0:00:40]} 41. Ke4 {[%clk 0:00:03]}  a5 {[%clk 0:00:38]} 42. c5 {[%clk 0:00:02]}  dxc5 {[%clk 0:00:38]} 43. Kf5 {[%clk 0:00:03]}  a4 {[%clk 0:00:38]} 44. Kg6 {[%clk 0:00:03]}  a3 {[%clk 0:00:38]} 45. Kg7 {[%clk 0:00:04]}  Rd2 {[%clk 0:00:39]} 46. Nf8 {[%clk 0:00:05]}  a2 {[%clk 0:00:38]} 47. Ng6 {[%clk 0:00:05]}  a1=Q {[%clk 0:00:38]} 48. Kh7 {[%clk 0:00:06]}  Rh2+ {[%clk 0:00:37]} 49. Kg7 {[%clk 0:00:07]}  e4+ {[%clk 0:00:38]} 50. Kf7 {[%clk 0:00:06]}  Rh7+ {[%clk 0:00:38]} 51. Ke8 {[%clk 0:00:06]}  Qg7 {[%clk 0:00:37]} 52. Nf8 {[%clk 0:00:07]}  Qe7# {[%clk 0:00:37]} 0-1


[Site "https://www.chess.com"]

[Event "Titled Tuesday Blitz March 28 Late 2023"]
[White "Kokoszczynski, Jan"]
[Black "lluiss"]
[WhiteFideId "1174460"]
[WhiteElo "2139"]
[BlackElo "2191"]
[Result "1-0"]
[Round "02"]
[TimeControl "180+2"]
[Date "2023.03.28"]
[WhiteClock "0:00:07"]
[BlackClock "0:00:11"]

1. d4 {[%clk 0:02:54]}  Nf6 {[%clk 0:02:58]} 2. c4 {[%clk 0:02:54]}  g6 {[%clk 0:02:59]} 3. Nc3 {[%clk 0:02:55]}  d5 {[%clk 0:02:59]} 4. cxd5 {[%clk 0:02:54]}  Nxd5 {[%clk 0:03:00]} 5. e4 {[%clk 0:02:55]}  Nxc3 {[%clk 0:03:00]} 6. bxc3 {[%clk 0:02:56]}  Bg7 {[%clk 0:03:00]} 7. Qa4+ {[%clk 0:02:56]}  Qd7 {[%clk 0:02:54]} 8. Qb3 {[%clk 0:02:56]}  O-O {[%clk 0:02:52]} 9. Nf3 {[%clk 0:02:57]}  c5 {[%clk 0:02:51]} 10. Be3 {[%clk 0:02:43]}  Nc6 {[%clk 0:02:46]} 11. d5 {[%clk 0:02:42]}  Na5 {[%clk 0:02:31]} 12. Qa3 {[%clk 0:02:37]}  b6 {[%clk 0:02:31]} 13. Be2 {[%clk 0:02:36]}  f5 {[%clk 0:02:23]} 14. O-O {[%clk 0:01:59]}  fxe4 {[%clk 0:02:22]} 15. Nd2 {[%clk 0:02:00]}  Qf5 {[%clk 0:02:13]} 16. Bxc5 {[%clk 0:01:40]}  Qxd5 {[%clk 0:02:09]} 17. Qxa5 {[%clk 0:01:12]}  Qxd2 {[%clk 0:02:04]} 18. Bc4+ {[%clk 0:01:12]}  Kh8 {[%clk 0:02:02]} 19. Bxb6 {[%clk 0:01:11]}  Bxc3 {[%clk 0:01:58]} 20. Qa3 {[%clk 0:00:39]}  Bb4 {[%clk 0:01:38]} 21. Be3 {[%clk 0:00:23]}  Bxa3 {[%clk 0:00:52]} 22. Bxd2 {[%clk 0:00:23]}  Bb2 {[%clk 0:00:53]} 23. Rab1 {[%clk 0:00:23]}  Be5 {[%clk 0:00:48]} 24. Bd5 {[%clk 0:00:23]}  Ba6 {[%clk 0:00:39]} 25. Bxa8 {[%clk 0:00:18]}  Bxf1 {[%clk 0:00:39]} 26. Kxf1 {[%clk 0:00:08]}  Rxa8 {[%clk 0:00:38]} 27. Rb7 {[%clk 0:00:08]}  Bf6 {[%clk 0:00:36]} 28. Ke2 {[%clk 0:00:07]}  Kg7 {[%clk 0:00:28]} 29. a4 {[%clk 0:00:07]}  Kf7 {[%clk 0:00:25]} 30. a5 {[%clk 0:00:06]}  a6 {[%clk 0:00:25]} 31. Bb4 {[%clk 0:00:03]}  Rc8 {[%clk 0:00:22]} 32. Rb6 {[%clk 0:00:03]}  Rc2+ {[%clk 0:00:21]} 33. Ke1 {[%clk 0:00:04]}  Bd4 {[%clk 0:00:18]} 34. Rxa6 {[%clk 0:00:03]}  Rxf2 {[%clk 0:00:16]} 35. Bc3 {[%clk 0:00:02]}  Bxc3+ {[%clk 0:00:09]} 36. Kxf2 {[%clk 0:00:02]}  e6 {[%clk 0:00:08]} 37. Ke2 {[%clk 0:00:02]}  Kf6 {[%clk 0:00:09]} 38. Ra8 {[%clk 0:00:03]}  h5 {[%clk 0:00:08]} 39. a6 {[%clk 0:00:02]}  Bd4 {[%clk 0:00:08]} 40. Rd8 {[%clk 0:00:03]}  Bc5 {[%clk 0:00:08]} 41. Rc8 {[%clk 0:00:03]}  Bd4 {[%clk 0:00:07]} 42. Rc7 {[%clk 0:00:04]}  Ke5 {[%clk 0:00:07]} 43. a7 {[%clk 0:00:04]}  Kd6 {[%clk 0:00:07]} 44. Rb7 {[%clk 0:00:03]}  Bxa7 {[%clk 0:00:08]} 45. Rxa7 {[%clk 0:00:04]}  Ke5 {[%clk 0:00:09]} 46. Ra4 {[%clk 0:00:05]}  Kf5 {[%clk 0:00:09]} 47. Ke3 {[%clk 0:00:05]}  g5 {[%clk 0:00:10]} 48. Rxe4 {[%clk 0:00:05]}  g4 {[%clk 0:00:11]} 49. g3 {[%clk 0:00:06]}  e5 {[%clk 0:00:11]} 50. Ra4 {[%clk 0:00:06]}  Ke6 {[%clk 0:00:11]} 51. Ke4 {[%clk 0:00:06]}  Kd6 {[%clk 0:00:11]} 52. Ra6+ {[%clk 0:00:07]}  Kc5 {[%clk 0:00:11]} 53. Rh6 {[%clk 0:00:07]} 1-0


[Site "https://www.chess.com"]

[Event "Titled Tuesday Blitz March 28 Late 2023"]
[White "Rodshtein, Maxim"]
[Black "Lopez Perdomo, Juan David"]
[WhiteFideId "2806851"]
[BlackFideId "4405137"]
[WhiteElo "2555"]
[BlackElo "1965"]
[Result "1-0"]
[Round "02"]
[TimeControl "180+2"]
[Date "2023.03.28"]
[WhiteClock "0:01:02"]
[BlackClock "0:00:15"]

1. b3 {[%clk 0:03:00]}  e6 {[%clk 0:02:59]} 2. Bb2 {[%clk 0:03:00]}  d5 {[%clk 0:03:00]} 3. e3 {[%clk 0:03:00]}  Nf6 {[%clk 0:03:00]} 4. Nf3 {[%clk 0:03:00]}  c5 {[%clk 0:03:01]} 5. c4 {[%clk 0:03:00]}  Be7 {[%clk 0:02:59]} 6. cxd5 {[%clk 0:03:00]}  exd5 {[%clk 0:03:00]} 7. d4 {[%clk 0:03:00]}  cxd4 {[%clk 0:03:01]} 8. Nxd4 {[%clk 0:03:00]}  O-O {[%clk 0:03:00]} 9. Be2 {[%clk 0:03:00]}  Nc6 {[%clk 0:03:00]} 10. O-O {[%clk 0:02:59]}  Ne4 {[%clk 0:02:59]} 11. Nd2 {[%clk 0:02:58]}  Bf6 {[%clk 0:02:56]} 12. Nxc6 {[%clk 0:02:49]}  bxc6 {[%clk 0:02:57]} 13. Bxf6 {[%clk 0:02:48]}  Nxf6 {[%clk 0:02:56]} 14. Qc2 {[%clk 0:02:47]}  Qd6 {[%clk 0:02:48]} 15. Rac1 {[%clk 0:02:46]}  Bg4 {[%clk 0:02:44]} 16. Bd3 {[%clk 0:02:42]}  Rac8 {[%clk 0:02:40]} 17. h3 {[%clk 0:02:39]}  Bd7 {[%clk 0:02:32]} 18. Qc5 {[%clk 0:02:39]}  Qe5 {[%clk 0:02:27]} 19. Rfe1 {[%clk 0:02:14]}  Qg5 {[%clk 0:02:20]} 20. Nf3 {[%clk 0:02:12]}  Qh5 {[%clk 0:02:21]} 21. Nd4 {[%clk 0:02:05]}  Rfe8 {[%clk 0:01:59]} 22. Qd6 {[%clk 0:01:57]}  Kh8 {[%clk 0:01:42]} 23. Rc2 {[%clk 0:01:54]}  Qg5 {[%clk 0:01:29]} 24. Kf1 {[%clk 0:01:36]}  Qh6 {[%clk 0:00:46]} 25. Rec1 {[%clk 0:01:17]}  Rcd8 {[%clk 0:00:43]} 26. Qg3 {[%clk 0:01:14]}  Nh5 {[%clk 0:00:37]} 27. Qf3 {[%clk 0:01:13]}  Rc8 {[%clk 0:00:32]} 28. b4 {[%clk 0:01:10]}  Qd6 {[%clk 0:00:20]} 29. Qxh5 {[%clk 0:01:06]}  g6 {[%clk 0:00:19]} 30. Qh4 {[%clk 0:01:05]}  Re5 {[%clk 0:00:18]} 31. Qf4 {[%clk 0:01:04]}  Qe7 {[%clk 0:00:16]} 32. Nxc6 {[%clk 0:01:02]}  Bxc6 {[%clk 0:00:16]} 33. Rxc6 {[%clk 0:01:02]}  Rxc6 {[%clk 0:00:17]} 34. Rxc6 {[%clk 0:01:03]}  g5 {[%clk 0:00:16]} 35. Qd4 {[%clk 0:01:02]}  Qf6 {[%clk 0:00:15]} 36. Rxf6 {[%clk 0:01:02]} 1-0


[Site "https://www.chess.com"]

[Event "Titled Tuesday Blitz March 28 Late 2023"]
[White "Donskov, Anatoly"]
[Black "Mazzilli, Piero"]
[WhiteFideId "24143413"]
[BlackFideId "807087"]
[WhiteElo "2247"]
[BlackElo "2178"]
[Result "1-0"]
[Round "02"]
[TimeControl "180+2"]
[Date "2023.03.28"]
[WhiteClock "0:00:17"]
[BlackClock "0:00:07"]

1. e4 {[%clk 0:03:00]}  c5 {[%clk 0:03:00]} 2. Nf3 {[%clk 0:03:00]}  d6 {[%clk 0:03:00]} 3. d4 {[%clk 0:02:59]}  cxd4 {[%clk 0:03:01]} 4. Nxd4 {[%clk 0:03:00]}  Nf6 {[%clk 0:03:01]} 5. Nc3 {[%clk 0:02:53]}  a6 {[%clk 0:03:01]} 6. Rg1 {[%clk 0:02:53]}  e5 {[%clk 0:02:59]} 7. Nb3 {[%clk 0:02:45]}  b5 {[%clk 0:02:59]} 8. g4 {[%clk 0:02:35]}  Bb7 {[%clk 0:02:54]} 9. Bg2 {[%clk 0:02:13]}  h6 {[%clk 0:02:45]} 10. h4 {[%clk 0:02:11]}  Nbd7 {[%clk 0:02:34]} 11. g5 {[%clk 0:02:04]}  hxg5 {[%clk 0:02:35]} 12. hxg5 {[%clk 0:02:04]}  Nh5 {[%clk 0:02:35]} 13. Be3 {[%clk 0:02:04]}  Be7 {[%clk 0:01:55]} 14. Qd2 {[%clk 0:02:03]}  Rc8 {[%clk 0:01:46]} 15. O-O-O {[%clk 0:01:53]}  Nf4 {[%clk 0:01:40]} 16. Bf3 {[%clk 0:01:49]}  b4 {[%clk 0:01:06]} 17. Nd5 {[%clk 0:01:46]}  Nxd5 {[%clk 0:01:04]} 18. exd5 {[%clk 0:01:47]}  a5 {[%clk 0:01:02]} 19. Kb1 {[%clk 0:01:29]}  Qc7 {[%clk 0:00:53]} 20. Be4 {[%clk 0:01:23]}  a4 {[%clk 0:00:34]} 21. Nc1 {[%clk 0:01:23]}  Nc5 {[%clk 0:00:34]} 22. Bf5 {[%clk 0:01:21]}  Rb8 {[%clk 0:00:26]} 23. g6 {[%clk 0:01:17]}  f6 {[%clk 0:00:24]} 24. f4 {[%clk 0:01:17]}  Ba6 {[%clk 0:00:14]} 25. fxe5 {[%clk 0:01:14]}  fxe5 {[%clk 0:00:15]} 26. Nd3 {[%clk 0:01:00]}  b3 {[%clk 0:00:14]} 27. Nxc5 {[%clk 0:00:58]}  bxa2+ {[%clk 0:00:14]} 28. Ka1 {[%clk 0:00:58]}  dxc5 {[%clk 0:00:13]} 29. d6 {[%clk 0:00:58]}  Qb6 {[%clk 0:00:13]} 30. c3 {[%clk 0:00:53]}  Bf6 {[%clk 0:00:11]} 31. d7+ {[%clk 0:00:49]}  Kd8 {[%clk 0:00:11]} 32. Rg2 {[%clk 0:00:43]}  e4 {[%clk 0:00:11]} 33. Bf4 {[%clk 0:00:28]}  a3 {[%clk 0:00:11]} 34. Bxb8 {[%clk 0:00:25]}  Qxb8 {[%clk 0:00:11]} 35. bxa3 {[%clk 0:00:24]}  Qe5 {[%clk 0:00:10]} 36. Qb2 {[%clk 0:00:19]}  Qxc3 {[%clk 0:00:10]} 37. Qxc3 {[%clk 0:00:19]}  Bxc3+ {[%clk 0:00:11]} 38. Kxa2 {[%clk 0:00:19]}  Bc4+ {[%clk 0:00:11]} 39. Kb1 {[%clk 0:00:19]}  Ke7 {[%clk 0:00:11]} 40. Rc2 {[%clk 0:00:18]}  Rb8+ {[%clk 0:00:11]} 41. Kc1 {[%clk 0:00:17]}  Bd3 {[%clk 0:00:10]} 42. Rxd3 {[%clk 0:00:17]}  exd3 {[%clk 0:00:09]} 43. Rxc3 {[%clk 0:00:18]}  d2+ {[%clk 0:00:09]} 44. Kxd2 {[%clk 0:00:18]}  Rb5 {[%clk 0:00:08]} 45. Rd3 {[%clk 0:00:18]}  Kd8 {[%clk 0:00:09]} 46. Re3 {[%clk 0:00:17]}  Rb2+ {[%clk 0:00:07]} 47. Kc3 {[%clk 0:00:17]} 1-0


[Site "https://www.chess.com"]

[Event "Titled Tuesday Blitz March 28 Late 2023"]
[White "Liu, Casper"]
[Black "Khatena, Moshe"]
[WhiteFideId "1454153"]
[BlackFideId "2010461"]
[WhiteElo "2221"]
[BlackElo "2162"]
[Result "1-0"]
[Round "02"]
[TimeControl "180+2"]
[Date "2023.03.28"]
[WhiteClock "0:00:51"]
[BlackClock "0:00:22"]

1. d4 {[%clk 0:03:00]}  b5 {[%clk 0:02:57]} 2. c4 {[%clk 0:03:01]}  bxc4 {[%clk 0:02:57]} 3. e4 {[%clk 0:03:01]}  d5 {[%clk 0:02:55]} 4. exd5 {[%clk 0:02:57]}  Qxd5 {[%clk 0:02:48]} 5. Nc3 {[%clk 0:02:57]}  Qd7 {[%clk 0:02:26]} 6. Bxc4 {[%clk 0:02:56]}  Bb7 {[%clk 0:02:25]} 7. Nf3 {[%clk 0:02:56]}  e6 {[%clk 0:02:21]} 8. Bb5 {[%clk 0:02:46]}  c6 {[%clk 0:02:17]} 9. Ne5 {[%clk 0:02:42]}  Qc7 {[%clk 0:02:14]} 10. Bc4 {[%clk 0:02:35]}  Nd7 {[%clk 0:02:12]} 11. Bf4 {[%clk 0:02:23]}  Nxe5 {[%clk 0:02:12]} 12. Bxe5 {[%clk 0:02:23]}  Qd7 {[%clk 0:02:12]} 13. O-O {[%clk 0:02:21]}  Nf6 {[%clk 0:02:13]} 14. f4 {[%clk 0:02:14]}  Nd5 {[%clk 0:01:59]} 15. f5 {[%clk 0:02:10]}  O-O-O {[%clk 0:01:52]} 16. fxe6 {[%clk 0:02:07]}  Qxe6 {[%clk 0:01:50]} 17. Qb3 {[%clk 0:02:04]}  Bd6 {[%clk 0:01:36]} 18. Rac1 {[%clk 0:02:02]}  Kb8 {[%clk 0:01:32]} 19. Bxd6+ {[%clk 0:01:52]}  Rxd6 {[%clk 0:01:26]} 20. Rce1 {[%clk 0:01:39]}  Qg6 {[%clk 0:01:08]} 21. Re7 {[%clk 0:01:25]}  Nxe7 {[%clk 0:00:59]} 22. Rxf7 {[%clk 0:01:22]}  Re8 {[%clk 0:00:44]} 23. Ba6 {[%clk 0:01:16]}  Rd7 {[%clk 0:00:36]} 24. Na4 {[%clk 0:01:16]}  Qb1+ {[%clk 0:00:34]} 25. Rf1 {[%clk 0:01:15]}  Qe4 {[%clk 0:00:32]} 26. Kh1 {[%clk 0:01:04]}  Qxd4 {[%clk 0:00:31]} 27. h3 {[%clk 0:01:00]}  Nc8 {[%clk 0:00:28]} 28. Rc1 {[%clk 0:00:53]}  Nb6 {[%clk 0:00:25]} 29. Nc5 {[%clk 0:00:52]}  Qf4 {[%clk 0:00:22]} 30. Nxd7+ {[%clk 0:00:51]}  Nxd7 {[%clk 0:00:22]} 31. Qxb7# {[%clk 0:00:51]} 1-0


[Site "https://www.chess.com"]

[Event "Titled Tuesday Blitz March 28 Late 2023"]
[White "Adel, Sara"]
[Black "Minko, Dmitry"]
[WhiteFideId "10616764"]
[BlackFideId "24188468"]
[WhiteElo "1982"]
[BlackElo "2147"]
[Result "0-1"]
[Round "02"]
[TimeControl "180+2"]
[Date "2023.03.28"]
[WhiteClock "0:02:01"]
[BlackClock "0:02:06"]

1. e4 {[%clk 0:03:00]}  e5 {[%clk 0:02:59]} 2. Nf3 {[%clk 0:03:00]}  Nc6 {[%clk 0:02:59]} 3. Bc4 {[%clk 0:03:00]}  Nf6 {[%clk 0:02:57]} 4. d3 {[%clk 0:02:59]}  h6 {[%clk 0:02:56]} 5. c3 {[%clk 0:02:58]}  g6 {[%clk 0:02:56]} 6. Qe2 {[%clk 0:02:58]}  Bg7 {[%clk 0:02:56]} 7. Nbd2 {[%clk 0:02:59]}  O-O {[%clk 0:02:57]} 8. Nf1 {[%clk 0:02:59]}  d5 {[%clk 0:02:56]} 9. exd5 {[%clk 0:02:59]}  Nxd5 {[%clk 0:02:57]} 10. Ne3 {[%clk 0:02:57]}  Nf4 {[%clk 0:02:55]} 11. Qc2 {[%clk 0:02:57]}  Na5 {[%clk 0:02:41]} 12. g3 {[%clk 0:02:47]}  Nxc4 {[%clk 0:02:38]} 13. gxf4 {[%clk 0:02:34]}  Nxe3 {[%clk 0:02:38]} 14. Bxe3 {[%clk 0:02:31]}  exf4 {[%clk 0:02:37]} 15. Bxf4 {[%clk 0:02:30]}  Re8+ {[%clk 0:02:38]} 16. Be3 {[%clk 0:02:30]}  Bg4 {[%clk 0:02:37]} 17. Ng1 {[%clk 0:02:15]}  Qh4 {[%clk 0:02:28]} 18. Kd2 {[%clk 0:02:01]}  Rxe3 {[%clk 0:02:06]} 0-1


[Site "https://www.chess.com"]

[Event "Titled Tuesday Blitz March 28 Late 2023"]
[White "Molenda, Marcin"]
[Black "Kornyukov, Alexey"]
[WhiteFideId "1173065"]
[BlackFideId "4150457"]
[WhiteElo "2286"]
[BlackElo "2352"]
[Result "0-1"]
[Round "02"]
[TimeControl "180+2"]
[Date "2023.03.28"]
[WhiteClock "0:00:58"]
[BlackClock "0:00:20"]

1. e4 {[%clk 0:03:00]}  c5 {[%clk 0:02:45]} 2. c3 {[%clk 0:02:55]}  Nf6 {[%clk 0:02:44]} 3. e5 {[%clk 0:02:50]}  Nd5 {[%clk 0:02:44]} 4. Nf3 {[%clk 0:02:50]}  d6 {[%clk 0:02:39]} 5. Bc4 {[%clk 0:02:49]}  dxe5 {[%clk 0:02:38]} 6. Nxe5 {[%clk 0:02:47]}  e6 {[%clk 0:02:36]} 7. O-O {[%clk 0:02:47]}  Be7 {[%clk 0:02:34]} 8. d4 {[%clk 0:02:45]}  cxd4 {[%clk 0:02:29]} 9. cxd4 {[%clk 0:02:46]}  O-O {[%clk 0:02:29]} 10. Nc3 {[%clk 0:02:47]}  Nf6 {[%clk 0:02:21]} 11. Bg5 {[%clk 0:02:46]}  h6 {[%clk 0:02:14]} 12. Bh4 {[%clk 0:02:46]}  a6 {[%clk 0:02:07]} 13. a3 {[%clk 0:02:36]}  b5 {[%clk 0:02:07]} 14. Ba2 {[%clk 0:02:36]}  Bb7 {[%clk 0:02:07]} 15. Re1 {[%clk 0:02:35]}  Nc6 {[%clk 0:02:05]} 16. Qf3 {[%clk 0:02:30]}  Qb6 {[%clk 0:01:54]} 17. Nxc6 {[%clk 0:02:09]}  Bxc6 {[%clk 0:01:53]} 18. Qe3 {[%clk 0:02:06]}  Rfe8 {[%clk 0:01:46]} 19. Rad1 {[%clk 0:01:57]}  Qb7 {[%clk 0:01:46]} 20. Qh3 {[%clk 0:01:52]}  Rad8 {[%clk 0:01:42]} 21. Rd3 {[%clk 0:01:37]}  b4 {[%clk 0:01:34]} 22. axb4 {[%clk 0:01:34]}  Qxb4 {[%clk 0:01:34]} 23. Rg3 {[%clk 0:01:34]}  Rxd4 {[%clk 0:01:22]} 24. Bxe6 {[%clk 0:01:33]}  Rxh4 {[%clk 0:00:50]} 25. Bxf7+ {[%clk 0:01:24]}  Kxf7 {[%clk 0:00:32]} 26. Qe6+ {[%clk 0:01:25]}  Kf8 {[%clk 0:00:32]} 27. Qxc6 {[%clk 0:01:25]}  Qxb2 {[%clk 0:00:27]} 28. Nd5 {[%clk 0:01:18]}  Qd2 {[%clk 0:00:24]} 29. Rge3 {[%clk 0:01:02]}  Qxd5 {[%clk 0:00:24]} 30. Qxa6 {[%clk 0:01:01]}  Qd6 {[%clk 0:00:22]} 31. Qb5 {[%clk 0:00:57]}  Qxh2+ {[%clk 0:00:21]} 32. Kf1 {[%clk 0:00:57]}  Qh1+ {[%clk 0:00:21]} 33. Ke2 {[%clk 0:00:58]}  Qxg2 {[%clk 0:00:20]} 0-1


[Site "https://www.chess.com"]

[Event "Titled Tuesday Blitz March 28 Late 2023"]
[White "Michalski, Olaf"]
[Black "Fernandez Garcia, Gumersindo"]
[WhiteFideId "1106740"]
[BlackFideId "24516740"]
[WhiteElo "2173"]
[BlackElo "2093"]
[Result "0-1"]
[Round "02"]
[TimeControl "180+2"]
[Date "2023.03.28"]
[WhiteClock "0:00:04"]
[BlackClock "0:00:47"]

1. d4 {[%clk 0:02:58]}  Nf6 {[%clk 0:02:39]} 2. Nf3 {[%clk 0:02:58]}  e6 {[%clk 0:02:39]} 3. c4 {[%clk 0:02:58]}  d5 {[%clk 0:02:35]} 4. Nc3 {[%clk 0:02:57]}  Bb4 {[%clk 0:02:32]} 5. Qa4+ {[%clk 0:02:56]}  Nc6 {[%clk 0:02:30]} 6. e3 {[%clk 0:02:56]}  O-O {[%clk 0:02:29]} 7. Qc2 {[%clk 0:02:50]}  a6 {[%clk 0:02:19]} 8. a3 {[%clk 0:02:41]}  Bxc3+ {[%clk 0:02:17]} 9. bxc3 {[%clk 0:02:38]}  dxc4 {[%clk 0:02:16]} 10. Bxc4 {[%clk 0:02:37]}  b5 {[%clk 0:02:17]} 11. Bd3 {[%clk 0:02:36]}  Bb7 {[%clk 0:02:17]} 12. O-O {[%clk 0:02:29]}  Re8 {[%clk 0:02:03]} 13. e4 {[%clk 0:02:15]}  e5 {[%clk 0:02:00]} 14. d5 {[%clk 0:02:13]}  Na5 {[%clk 0:02:00]} 15. a4 {[%clk 0:02:05]}  Nc4 {[%clk 0:01:57]} 16. Bxc4 {[%clk 0:02:05]}  bxc4 {[%clk 0:01:56]} 17. Rd1 {[%clk 0:01:49]}  Qc8 {[%clk 0:01:50]} 18. Nd2 {[%clk 0:01:27]}  c6 {[%clk 0:01:47]} 19. Nxc4 {[%clk 0:01:27]}  cxd5 {[%clk 0:01:47]} 20. Nb6 {[%clk 0:01:16]}  Qc6 {[%clk 0:01:33]} 21. Nxa8 {[%clk 0:01:14]}  Nxe4 {[%clk 0:01:23]} 22. Be3 {[%clk 0:00:57]}  Bxa8 {[%clk 0:01:23]} 23. Rac1 {[%clk 0:00:48]}  Rc8 {[%clk 0:01:18]} 24. c4 {[%clk 0:00:20]}  d4 {[%clk 0:01:16]} 25. f3 {[%clk 0:00:13]}  Nc3 {[%clk 0:00:57]} 26. Bf2 {[%clk 0:00:12]}  Nxd1 {[%clk 0:00:56]} 27. Rxd1 {[%clk 0:00:10]}  Qxc4 {[%clk 0:00:55]} 28. Qf5 {[%clk 0:00:10]}  Qe6 {[%clk 0:00:52]} 29. Qg5 {[%clk 0:00:07]}  f6 {[%clk 0:00:50]} 30. Qd2 {[%clk 0:00:05]}  Qb3 {[%clk 0:00:49]} 31. Qa5 {[%clk 0:00:04]}  Qxd1+ {[%clk 0:00:47]} 0-1


[Site "https://www.chess.com"]